fUSD/lending_fUSD_20260405
["ID","MTS","AMOUNT","RATE_DAILY","PERIOD"]
[419752950,1775353901912,-920.66,0.00035835,9]
[419752951,1775353901922,-1893.19,0.00035835,9]
[419752952,1775353901932,-625.61,0.00035835,9]
[419752953,1775353901941,-611.80278774,0.00035835,9]
[419752954,1775353901951,-633.32,0.00035835,9]
[419752955,1775353901961,-807.75,0.00035835,9]
[419752956,1775353901970,-500.0,0.00035835,9]
[419752957,1775353901980,-500.0,0.00035835,9]
[419752958,1775353901989,-1427.78,0.00035835,9]
[419752959,1775353901999,-690.19,0.00035835,9]
[419752960,1775353902008,-1272.56,0.00035835,9]
[419752961,1775353902018,-538.34,0.00035835,9]
[419752962,1775353902027,-1052.44,0.00035835,9]
[419752963,1775353902036,-500.0,0.00035835,9]
[419752964,1775353902045,-500.0,0.00035835,9]
[419752965,1775353902055,-500.0,0.00035835,9]
[419752966,1775353902064,-500.0,0.00035835,9]
[419752967,1775353902073,-500.0,0.00035835,9]
[419752968,1775353902083,-500.9,0.00035835,9]
[419752969,1775353902092,-500.0,0.00035835,9]
[419752970,1775353902102,-597.38,0.00035835,9]
[419752971,1775353902112,-500.0,0.00035835,9]
[419752972,1775353902122,-500.0,0.00035835,9]
[419752973,1775353902132,-500.0,0.00035835,9]
[419752974,1775353902142,-500.0,0.00035835,9]
[419752975,1775353902152,-2912.67,0.00035835,2]
[419752976,1775353902162,-500.0,0.00035835,9]
[419752977,1775353902172,-500.0,0.00035835,9]
[419752978,1775353902182,-10738.04,0.00035835,9]
[419752979,1775353902192,-541.2,0.00035835,9]
[419752980,1775353902202,-1337.75,0.00035835,9]
[419752981,1775353902212,-772.25,0.00035835,9]
[419752982,1775353902221,-795.31,0.00035835,9]
[419752983,1775353902231,-526.37395172,0.00035835,9]
[419752984,1775353902241,-500.0,0.00035835,9]
[419752985,1775353902250,-558.04,0.00035835,9]
[419752986,1775353902260,-1392.98,0.00035835,9]
[419752987,1775353902269,-151.3676917,0.00035835,9]
[419752988,1775353902279,-664.18,0.00035835,9]
[419752989,1775353902288,-841.1,0.00035835,9]
[419752990,1775353902297,-525.34,0.00035835,9]
[419752991,1775353902307,-824.26,0.00035835,9]
[419752992,1775353902317,-500.0,0.00035835,9]
[419752993,1775353902327,-1796.32,0.00035835,9]
[419752994,1775353902337,-500.0,0.00035835,9]
[419752995,1775353902347,-500.0,0.00035835,9]
[419752996,1775353902356,-500.0,0.00035835,9]
[419752997,1775353902366,-1340.61,0.00035835,9]
[419752998,1775353902376,-518.44,0.00035835,9]
[419752999,1775353902386,-605.99,0.00035835,9]
[419753000,1775353902396,-500.0,0.00035835,9]
[419753001,1775353902405,-5990.58,0.00035835,9]
[419753002,1775353902415,-500.0,0.00035835,9]
[419753003,1775353902424,-500.0,0.00035835,9]
[419753004,1775353902434,-783.46,0.00035835,9]
[419753005,1775353902444,-500.0,0.00035835,9]
[419753006,1775353902453,-2102.66,0.00035835,9]
[419753007,1775353902463,-736.64,0.00035835,9]
[419753008,1775353902473,-1667.41,0.00035835,9]
[419753009,1775353902483,-1865.67,0.00035835,9]
[419753010,1775353902492,-388.56635239,0.00035835,9]
[419753011,1775353902502,-500.0,0.00035835,9]
[419753012,1775353902511,-4194.52,0.00035835,9]
[419753013,1775353902521,-500.0,0.00035835,9]
[419753014,1775353902530,-500.0,0.00035835,9]
[419753015,1775353902540,-5124.18,0.00035835,9]
[419753016,1775353902550,-500.0,0.00035835,9]
[419753017,1775353902560,-500.0,0.00035835,9]
[419753018,1775353902570,-4129.13,0.00035835,9]
[419753019,1775353902579,-709.45,0.00035835,9]
[419753020,1775353902589,-4146.43,0.00035835,9]
[419753021,1775353902599,-500.0,0.00035835,9]
[419753022,1775353902608,-500.0,0.00035835,9]
[419753023,1775353902618,-920.0,0.00035835,9]
[419753024,1775353902628,-500.0,0.00035835,9]
[419753025,1775353902638,-500.0,0.00035835,9]
[419753026,1775353902647,-3691.15,0.00035835,9]
[419753027,1775353902657,-2029.32,0.00035835,9]
[419753028,1775353902668,-2926.58,0.00035835,9]
[419753029,1775353902677,-500.0,0.00035835,9]
[419753030,1775353902687,-746.91,0.00035835,9]
[419753031,1775353902696,-2342.63,0.00035835,9]
[419753032,1775353902706,-3041.42,0.00035835,9]
[419753033,1775353902716,-500.0,0.00035835,9]
[419753034,1775353902725,-500.0,0.00035835,9]
[419753035,1775353902735,-500.0,0.00035835,5]
[419753036,1775353902744,-500.0,0.00035835,9]
[419753037,1775353902754,-500.0,0.00035835,9]
[419753038,1775353902764,-712.11,0.00035835,9]
[419753039,1775353902774,-2582.16,0.00035835,9]
[419753040,1775353902784,-2264.77,0.00035835,9]
[419753041,1775353902794,-500.0,0.00035835,9]
[419753042,1775353902804,-300.0,0.00035835,2]
[419753043,1775353902814,-758.41,0.00035835,9]
[419753044,1775353903016,-3561.26,0.00035835,9]
[419753045,1775353903055,-500.0,0.00035835,9]
[419753046,1775353903066,-500.0,0.00035835,9]
[419753047,1775353903077,-1033.1,0.00035835,9]
[419753048,1775353903089,-515.85,0.00035835,9]
[419753049,1775353903098,-500.0,0.00035835,9]
[419753050,1775353903109,-500.0,0.00035835,9]
[419753051,1775353903120,-639.87,0.00035835,9]
[419753052,1775353903131,-500.0,0.00035835,9]
[419753053,1775353903141,-500.0,0.00035835,9]
[419753054,1775353903152,-500.0,0.00035835,9]
[419753055,1775353903164,-377.48,0.00035835,9]
[419753056,1775353903175,-681.63,0.00035835,9]
[419753057,1775353903185,-1289.51,0.00035835,9]
[419753058,1775353903196,-1806.38,0.00035835,9]
[419753059,1775353903206,-500.0,0.00035835,9]
[419753060,1775353903217,-875.99,0.00035835,9]
[419753061,1775353903227,-1405.54,0.00035835,9]
[419753062,1775353903237,-1621.0,0.00035835,9]
[419753063,1775353903247,-502.14,0.00035835,9]
[419753064,1775353903256,-1112.73,0.00035835,9]
[419753065,1775353903267,-500.0,0.00035835,9]
[419753066,1775353903277,-3180.89,0.00035835,9]
[419753067,1775353903286,-500.0,0.00035835,9]
[419753068,1775353903296,-500.0,0.00035835,9]
[419753069,1775353903306,-949.71,0.00035835,9]
[419753070,1775353903317,-500.0,0.00035835,9]
[419753071,1775353903327,-1307.46,0.00035835,9]
[419753072,1775353903337,-2516.51,0.00035835,9]
[419753073,1775353903347,-3203.28,0.00035835,9]
[419753074,1775353903357,-1602.86,0.00035835,9]
[419753075,1775353903367,-500.0,0.00035835,9]
[419753076,1775353903377,-500.0,0.00035835,9]
[419753077,1775353903387,-691.8,0.00035835,9]
[419753078,1775353903397,-854.68,0.00035835,9]
[419753079,1775353903407,-500.0,0.00035835,9]
[419753080,1775353903417,-1045.08,0.00035835,9]
[419753081,1775353903426,-500.0,0.00035835,9]
[419753082,1775353903437,-965.3,0.00035835,9]
[419753083,1775353903447,-500.0,0.00035835,9]
[419753084,1775353903457,-501.12,0.00035835,9]
[419753085,1775353903467,-500.0,0.00035835,9]
[419753086,1775353903477,-2190.31,0.00035835,9]
[419753087,1775353903486,-500.0,0.00035835,9]
[419753088,1775353903496,-448.51310292,0.00035835,9]
[419753089,1775353903505,-870.36,0.00035835,9]
[419753090,1775353903515,-500.0,0.00035835,9]
[419753091,1775353903524,-1332.85,0.00035835,9]
[419753092,1775353903533,-201.22302685,0.00035835,9]
[419753093,1775353903542,-714.3,0.00035835,9]
[419753094,1775353903552,-500.0,0.00035835,9]
[419753095,1775353903562,-999.6,0.00035835,9]
[419753096,1775353903572,-500.0,0.00035835,9]
[419753097,1775353903581,-500.0,0.00035835,9]
[419753098,1775353903591,-1465.88,0.00035835,9]
[419753099,1775353903601,-1995.72,0.00035835,9]
[419753100,1775353903611,-774.58,0.00035835,9]
[419753101,1775353903621,-500.0,0.00035835,9]
[419753102,1775353903631,-1866.9,0.00035835,9]
[419753103,1775353903641,-1935.95,0.00035835,9]
[419753104,1775353903650,-4213.24,0.00035835,9]
[419753105,1775353903660,-634.8,0.00035835,9]
[419753106,1775353903670,-500.0,0.00035835,9]
[419753107,1775353903679,-1793.43,0.00035835,9]
[419753108,1775353903689,-1265.83,0.00035835,9]
[419753109,1775353903699,-840.33,0.00035835,9]
[419753110,1775353903709,-565.36,0.00035835,9]
[419753111,1775353903718,-847.44,0.00035835,9]
[419753112,1775353903727,-629.26,0.00035835,9]
[419753113,1775353903737,-500.0,0.00035835,9]
[419753114,1775353903746,-969.68,0.00035835,9]
[419753115,1775353903756,-910.34,0.00035835,9]
[419753116,1775353903765,-151.26569602,0.00035835,9]
[419753117,1775353903775,-500.0,0.00035835,9]
[419753118,1775353903785,-500.0,0.00035835,9]
[419753119,1775353903795,-2177.01,0.00035835,9]
[419753120,1775353903805,-1309.56,0.00035835,9]
[419753121,1775353903815,-1221.11,0.00035835,9]
[419753122,1775353903825,-1087.69,0.00035835,9]
[419753123,1775353903835,-511.2,0.00035835,9]
[419753124,1775353903849,-838.62,0.00035835,9]
[419753125,1775353903858,-500.0,0.00035835,9]
[419753126,1775353903869,-1106.79,0.00035835,9]
[419753127,1775353903878,-1272.17,0.00035835,9]
[419753128,1775353903888,-5932.49,0.00035835,9]
[419753129,1775353903898,-653.79,0.00035835,9]
[419753130,1775353903908,-1781.96,0.00035835,9]
[419753131,1775353903919,-500.0,0.00035835,9]
[419753132,1775353903929,-500.0,0.00035835,9]
[419753133,1775353903939,-606.73,0.00035835,9]
[419753134,1775353903950,-1687.57,0.00035835,9]
[419753135,1775353903959,-1038.58,0.00035835,9]
[419753136,1775353903972,-1420.14,0.00035835,9]
[419753137,1775353903982,-500.0,0.00035835,9]
[419753138,1775353903993,-500.0,0.00035835,9]
[419753139,1775353904003,-542.23,0.00035835,9]
[419753140,1775353904014,-3304.27,0.00035835,9]
[419753141,1775353904023,-500.0,0.00035835,9]
[419753142,1775353904033,-2317.73,0.00035835,9]
[419753143,1775353904044,-500.0,0.00035835,9]
[419753144,1775353904053,-500.0,0.00035835,9]
[419753145,1775353904063,-600.48,0.00035835,9]
[419753146,1775353904074,-500.0,0.00035835,9]
[419753147,1775353904084,-1700.82,0.00035835,9]
[419753148,1775353904094,-1559.66,0.00035835,9]
[419753149,1775353904103,-2837.2,0.00035835,9]
[419753150,1775353904114,-1459.33,0.00035835,9]
[419753151,1775353904125,-500.0,0.00035835,9]
[419753152,1775353904135,-2153.71,0.00035835,9]
[419753153,1775353904146,-1499.67,0.00035835,9]
[419753154,1775353904156,-2097.77,0.00035835,9]
[419753155,1775353904166,-641.61,0.00035835,9]
[419753156,1775353904177,-500.0,0.00035835,9]
[419753157,1775353904186,-500.0,0.00035835,9]
[419753158,1775353904196,-500.0,0.00035835,9]
[419753159,1775353904206,-1322.14,0.00035835,9]
[419753160,1775353904216,-1002.26,0.00035835,9]
[419753161,1775353904226,-500.0,0.00035835,9]
[419753162,1775353904235,-500.0,0.00035835,9]
[419753163,1775353904244,-507.23,0.00035835,9]
[419753164,1775353904254,-2468.61,0.00035835,9]
[419753165,1775353904264,-539.12,0.00035835,9]
[419753166,1775353904274,-880.26,0.00035835,9]
[419753167,1775353904284,-204.64359654,0.00035835,9]
[419753168,1775353904293,-2403.51,0.00035835,9]
[419753169,1775353904303,-500.0,0.00035835,9]
[419753170,1775353904312,-872.48,0.00035835,9]
[419753171,1775353904322,-176.47899514,0.00035835,9]
[419753172,1775353904332,-924.79,0.00035835,9]
[419753173,1775353904342,-565.63,0.00035835,9]
[419753174,1775353904352,-1079.27,0.00035835,9]
[419753175,1775353904362,-549.47,0.00035835,9]
[419753176,1775353904372,-2169.07,0.00035835,9]
[419753177,1775353904382,-1100.54,0.00035835,9]
[419753178,1775353904392,-500.0,0.00035835,9]
[419753179,1775353904402,-500.0,0.00035835,9]
[419753180,1775353904412,-811.05,0.00035835,9]
[419753181,1775353904422,-856.97,0.00035835,9]
[419753182,1775353904432,-500.0,0.00035835,9]
[419753183,1775353904442,-1509.99,0.00035835,9]
[419753184,1775353904452,-838.66,0.00035835,9]
[419753185,1775353904462,-2703.73,0.00035835,9]
[419753186,1775353904471,-864.13,0.00035835,9]
[419753187,1775353904480,-868.79,0.00035835,9]
[419753188,1775353904491,-1159.36,0.00035835,9]
[419753189,1775353904501,-344.48887611,0.00035835,9]
[419753190,1775353904511,-686.5,0.00035835,9]
[419753191,1775353904520,-656.0,0.00035835,9]
[419753192,1775353904530,-1230.3,0.00035835,9]
[419753193,1775353904540,-897.5,0.00035835,9]
[419753194,1775353904550,-2186.07,0.00035835,9]
[419753195,1775353904559,-1515.36,0.00035835,9]
[419753196,1775353904569,-1632.89,0.00035835,9]
[419753197,1775353904579,-536.49,0.00035835,9]
[419753198,1775353904588,-2291.93,0.00035835,9]
[419753199,1775353904598,-1045.49,0.00035835,9]
[419753200,1775353904607,-1716.91,0.00035835,9]
[419753201,1775353904617,-500.0,0.00035835,2]
[419753202,1775353904627,-500.0,0.00035835,9]
[419753203,1775353904637,-1057.04,0.00035835,9]
[419753204,1775353904646,-155.03099886,0.00035835,9]
[419753205,1775353904657,-527.80682666,0.00035835,9]
[419753206,1775353904667,-717.81,0.00035835,9]
[419753207,1775353904677,-633.28,0.00035835,9]
[419753208,1775353904687,-500.0,0.00035835,9]
[419753209,1775353904697,-728.1,0.00035835,9]
[419753210,1775353904708,-2396.23,0.00035835,9]
[419753211,1775353904718,-1150.01,0.00035835,9]
[419753212,1775353904729,-1979.07,0.00035835,9]
[419753213,1775353904739,-946.76,0.00035835,9]
[419753214,1775353904749,-534.35,0.00035835,9]
[419753215,1775353904759,-1460.48,0.00035835,9]
[419753216,1775353904770,-1726.02,0.00035835,9]
[419753217,1775353904780,-798.7,0.00035835,9]
[419753218,1775353904790,-1309.46,0.00035835,9]
[419753219,1775353904799,-799.89,0.00035835,9]
[419753220,1775353904809,-500.0,0.00035835,2]
[419753221,1775353904818,-2020.26,0.00035835,9]
[419753222,1775353904828,-500.0,0.00035835,9]
[419753223,1775353904837,-1464.74,0.00035835,9]
[419753224,1775353904847,-705.6,0.00035835,9]
[419753225,1775353904856,-2827.98,0.00035835,9]
[419753226,1775353904865,-4660.5,0.00035835,9]
[419753227,1775353904874,-500.0,0.00035835,9]
[419753228,1775353904884,-1829.34,0.00035835,9]
[419753229,1775353904893,-1699.1,0.00035835,9]
[419753230,1775353904903,-593.69,0.00035835,9]
[419753231,1775353904912,-1241.08,0.00035835,9]
[419753232,1775353904921,-469.53735648,0.00035835,9]
[419753233,1775353904932,-500.0,0.00035835,2]
[419753234,1775353904941,-1516.98,0.00035835,9]
[419753235,1775353904951,-500.0,0.00035835,9]
[419753236,1775353904962,-823.21,0.00035835,9]
[419753237,1775353904971,-500.0,0.00035835,9]
[419753238,1775353904981,-2031.37,0.00035835,9]
[419753239,1775353904990,-192.99672949,0.00035835,9]
[419753240,1775353905002,-2504.39,0.00035835,9]
[419753241,1775353905012,-500.0,0.00035835,9]
[419753242,1775353905022,-500.0,0.00035835,9]
[419753243,1775353905032,-500.0,0.00035835,9]
[419753244,1775353905041,-500.0,0.00035835,9]
[419753245,1775353905051,-500.0,0.00035835,9]
[419753246,1775353905060,-500.0,0.00035835,9]
[419753247,1775353905070,-1345.46,0.00035835,9]
[419753248,1775353905079,-1209.88,0.00035835,9]
[419753249,1775353905089,-14562.7,0.00035835,9]
[419753250,1775353905099,-579.06,0.00035835,9]
[419753251,1775353905109,-151.0,0.00035853,60]
[419753252,1775353905118,-569.0,0.00035887,9]
[419753253,1775353905128,-500.0,0.00035887,9]
[419753254,1775353905138,-500.0,0.00035887,9]
[419753255,1775353905148,-500.0,0.00035887,9]
[419753256,1775353905158,-610.71733715,0.00035887,9]
[419753257,1775353905168,-150.0,0.00035887,9]
[419753258,1775353905178,-150.0,0.00035887,9]
[419753259,1775353905188,-500.0,0.00035887,9]
[419753260,1775353905197,-150.0,0.00035887,9]
[419753261,1775353905207,-500.0,0.00035887,9]
[419753262,1775353905216,-500.0,0.00035887,9]
[419753263,1775353905226,-150.0,0.00035887,9]
[419753264,1775353905236,-500.0,0.00035887,9]
[419753265,1775353905245,-150.0,0.00035887,9]
[419753266,1775353905255,-500.0,0.00035887,9]
[419753267,1775353905264,-500.0,0.00035887,9]
[419753268,1775353905274,-500.0,0.00035887,9]
[419753269,1775353905284,-150.0,0.00035887,9]
[419753270,1775353905295,-500.0,0.00035887,9]
[419753271,1775353905304,-682.0,0.00035887,9]
[419753272,1775353905314,-1399.0,0.00035887,9]
[419753273,1775353905324,-500.0,0.00035887,9]
[419753274,1775353905333,-500.0,0.00035887,9]
[419753275,1775353905343,-500.0,0.00035887,9]
[419753276,1775353905352,-500.0,0.00035887,9]
[419753277,1775353905362,-500.0,0.00035887,9]
[419753278,1775353905372,-150.0,0.00035887,9]
[419753279,1775353905381,-500.0,0.00035887,9]
[419753280,1775353905390,-538.51222016,0.00035887,9]
[419753281,1775353905400,-2700.0,0.000359,13]
[419753282,1775353905409,-1338.83,0.00035905,30]
[419753283,1775353905419,-903.35,0.00035911,2]
[419753284,1775353905428,-1262.02,0.00035935,2]
[419753285,1775353905437,-150.0,0.00035944,2]
[419753286,1775353905447,-535.47084436,0.00035944,9]
[419753287,1775353905457,-535.47084435,0.00035944,9]
[419753288,1775353905466,-1000.0,0.00035945,2]
[419753289,1775353905560,-721.26,0.00035945,9]
[419753290,1775353905570,-500.0,0.00035945,9]
[419753291,1775353905579,-500.0,0.00035945,9]
[419753292,1775353905588,-500.0,0.00035945,9]
[419753293,1775353905598,-1688.67,0.00035945,9]
[419753294,1775353905607,-500.0,0.00035945,9]
[419753295,1775353905616,-938.11,0.00035945,9]
[419753296,1775353905625,-500.0,0.00035945,9]
[419753297,1775353905634,-500.0,0.00035945,9]
[419753298,1775353905643,-500.0,0.00035945,9]
[419753299,1775353905652,-1840.87,0.00035945,9]
[419753300,1775353905661,-500.0,0.00035945,9]
[419753301,1775353905671,-500.0,0.00035945,9]
[419753302,1775353905680,-500.0,0.00035945,9]
[419753303,1775353905690,-500.0,0.00035945,9]
[419753304,1775353905699,-1500.19,0.00035945,9]
[419753305,1775353905710,-500.0,0.00035945,9]
[419753306,1775353905720,-838.91,0.00035945,9]
[419753307,1775353905729,-532.88,0.00035945,9]
[419753308,1775353905739,-526.25,0.00035945,9]
[419753309,1775353905749,-968.52,0.00035945,9]
[419753310,1775353905758,-500.0,0.00035945,9]
[419753311,1775353905780,-721.72,0.00035945,9]
[419753312,1775353905790,-500.0,0.00035945,9]
[419753313,1775353905800,-500.0,0.00035945,9]
[419753314,1775353905809,-500.0,0.00035945,9]
[419753315,1775353905819,-500.0,0.00035945,9]
[419753316,1775353905828,-500.0,0.00035945,9]
[419753317,1775353905837,-500.0,0.00035945,9]
[419753318,1775353905847,-739.39,0.00035945,9]
[419753319,1775353905856,-1454.17,0.00035945,9]
[419753320,1775353905866,-500.0,0.00035945,2]
[419753321,1775353905875,-500.0,0.00035945,9]
[419753322,1775353905884,-500.0,0.00035945,9]
[419753323,1775353905894,-1198.21,0.00035945,9]
[419753324,1775353905905,-695.01,0.00035945,9]
[419753325,1775353905915,-1157.87,0.00035945,9]
[419753326,1775353905925,-500.0,0.00035945,9]
[419753327,1775353905934,-500.0,0.00035945,9]
[419753328,1775353905944,-690.69,0.00035945,9]
[419753329,1775353905953,-500.0,0.00035945,9]
[419753330,1775353905962,-500.0,0.00035945,9]
[419753331,1775353905972,-810.45,0.00035945,9]
[419753332,1775353905981,-500.0,0.00035945,9]
[419753333,1775353905990,-1157.19,0.00035945,9]
[419753334,1775353905999,-500.0,0.00035945,9]
[419753335,1775353906008,-666.9,0.00035945,9]
[419753336,1775353906018,-500.0,0.00035945,9]
[419753337,1775353906027,-1097.67,0.00035945,9]
[419753338,1775353906037,-500.0,0.00035945,9]
[419753339,1775353906047,-554.39,0.00035945,9]
[419753340,1775353906057,-266.04367782,0.00035945,9]
[419753341,1775353906067,-500.0,0.00035945,9]
[419753342,1775353906076,-500.0,0.00035945,9]
[419753343,1775353906087,-1070.31,0.00035945,9]
[419753344,1775353906096,-500.0,0.00035945,9]
[419753345,1775353906106,-1249.75,0.00035945,9]
[419753346,1775353906115,-659.27,0.00035945,9]
[419753347,1775353906125,-500.0,0.00035945,9]
[419753348,1775353906134,-1182.69,0.00035945,9]
[419753349,1775353906143,-500.0,0.00035945,9]
[419753350,1775353906153,-500.0,0.00035945,9]
[419753351,1775353906163,-500.0,0.00035945,9]
[419753352,1775353906172,-500.0,0.00035945,9]
[419753353,1775353906181,-500.0,0.00035945,2]
[419753354,1775353906191,-500.0,0.00035945,9]
[419753355,1775353906200,-908.3,0.00035945,9]
[419753356,1775353906209,-500.0,0.00035945,9]
[419753357,1775353906219,-500.0,0.00035945,9]
[419753358,1775353906228,-1131.52,0.00035945,9]
[419753359,1775353906238,-500.0,0.00035945,9]
[419753360,1775353906247,-681.35,0.00035945,9]
[419753361,1775353906257,-500.0,0.00035945,9]
[419753362,1775353906266,-500.0,0.00035945,9]
[419753363,1775353906275,-500.0,0.00035945,9]
[419753364,1775353906285,-563.5,0.00035945,9]
[419753365,1775353906294,-557.98,0.00035945,9]
[419753366,1775353906303,-677.45,0.00035945,9]
[419753367,1775353906313,-560.93,0.00035945,9]
[419753368,1775353906322,-573.01,0.00035945,9]
[419753369,1775353906332,-1401.88,0.00035945,9]
[419753370,1775353906342,-500.0,0.00035945,9]
[419753371,1775353906352,-1117.6,0.00035945,9]
[419753372,1775353906361,-500.0,0.00035945,9]
[419753373,1775353906371,-500.0,0.00035945,9]
[419753374,1775353906380,-500.0,0.00035945,9]
[419753375,1775353906390,-185.97092124,0.00035945,9]
[419753376,1775353906400,-500.0,0.00035945,9]
[419753377,1775353906410,-534.99,0.00035945,9]
[419753378,1775353906419,-944.87,0.00035945,9]
[419753379,1775353906428,-309.6868088,0.00035945,9]
[419753380,1775353906438,-225.04581057,0.00035945,9]
[419753381,1775353906447,-771.12,0.00035945,9]
[419753382,1775353906457,-1033.85,0.00035945,9]
[419753383,1775353906467,-661.82,0.00035945,9]
[419753384,1775353906476,-500.0,0.00035945,9]
[419753385,1775353906486,-500.0,0.00035945,2]
[419753386,1775353906497,-1074.83,0.00035945,9]
[419753387,1775353906507,-1208.46,0.00035945,9]
[419753388,1775353906517,-527.29,0.00035945,9]
[419753389,1775353906526,-620.02,0.00035945,9]
[419753390,1775353906535,-549.5,0.00035945,9]
[419753391,1775353906545,-643.10357124,0.00035945,9]
[419753392,1775353906554,-500.0,0.00035945,9]
[419753393,1775353906563,-634.2664015,0.00035945,9]
[419753394,1775353906573,-608.24,0.00035945,9]
[419753395,1775353906582,-1089.31,0.00035945,9]
[419753396,1775353906591,-1532.9,0.00035945,9]
[419753397,1775353906601,-566.32,0.00035945,9]
[419753398,1775353906611,-1542.53,0.00035945,9]
[419753399,1775353906620,-500.0,0.00035945,9]
[419753400,1775353906630,-500.0,0.00035945,9]
[419753401,1775353906640,-500.0,0.00035945,9]
[419753402,1775353906649,-1835.06,0.00035945,9]
[419753403,1775353906659,-500.0,0.00035945,9]
[419753404,1775353906669,-930.05,0.00035945,9]
[419753405,1775353906678,-500.0,0.00035945,9]
[419753406,1775353906688,-500.0,0.00035945,9]
[419753407,1775353906698,-882.83,0.00035945,9]
[419753408,1775353906708,-500.0,0.00035945,9]
[419753409,1775353906718,-2962.35,0.00035945,9]
[419753410,1775353906728,-500.0,0.00035945,9]
[419753411,1775353906738,-514.84,0.00035945,9]
[419753412,1775353906748,-1344.29,0.00035945,9]
[419753413,1775353906758,-726.58,0.00035945,9]
[419753414,1775353906768,-500.0,0.00035945,9]
[419753415,1775353906778,-511.03482213,0.00035945,9]
[419753416,1775353906788,-1917.29,0.00035945,9]
[419753417,1775353906797,-1090.95,0.00035945,9]
[419753418,1775353906807,-1110.64,0.00035945,9]
[419753419,1775353906817,-500.0,0.00035945,9]
[419753420,1775353906826,-500.0,0.00035945,9]
[419753421,1775353906836,-1806.89,0.00035945,4]
[419753422,1775353906846,-500.0,0.00035945,9]
[419753423,1775353906856,-526.51430907,0.00035945,9]
[419753424,1775353906865,-694.01,0.00035945,9]
[419753425,1775353906874,-500.0,0.00035945,9]
[419753426,1775353906884,-1276.54,0.00035945,9]
[419753427,1775353906893,-1257.81,0.00035945,9]
[419753428,1775353906904,-500.0,0.00035945,9]
[419753429,1775353906914,-500.0,0.00035945,9]
[419753430,1775353906923,-500.0,0.00035945,9]
[419753431,1775353906939,-500.0,0.00035945,9]
[419753432,1775353906949,-500.0,0.00035945,9]
[419753433,1775353906972,-869.89,0.00035945,9]
[419753434,1775353906994,-500.0,0.00035945,9]
[419753435,1775353907005,-2840.53,0.00035945,9]
[419753436,1775353907019,-1622.44,0.00035945,9]
[419753437,1775353907029,-2043.02,0.00035945,9]
[419753438,1775353907052,-500.0,0.00035945,9]
[419753439,1775353907066,-605.32,0.00035945,9]
[419753440,1775353907080,-2058.21,0.00035945,9]
[419753441,1775353907093,-500.0,0.00035945,9]
[419753442,1775353907103,-518.77,0.00035945,9]
[419753443,1775353907112,-1239.52,0.00035945,9]
[419753444,1775353907122,-1285.78,0.00035945,9]
[419753445,1775353907132,-811.59,0.00035945,9]
[419753446,1775353907151,-837.02,0.00035945,9]
[419753447,1775353907161,-562.72,0.00035945,9]
[419753448,1775353907170,-500.0,0.00035945,9]
[419753449,1775353907181,-500.0,0.00035945,9]